[Event "Early-Titled-Tuesday-Blitz-December-26-2023"]
[Site "Chess.com"]
[Date "2023.12.26"]
[Round "1"]
[White "ShahMatKanal"]
[Black "defenceboy"]
[Result "0-1"]
[WhiteElo "2508"]
[BlackElo "2881"]
[TimeControl "180+1"]
[EndTime "8:08:08 PST"]
[Termination "defenceboy won on time"]

1. d4 {[%clk 0:02:59.6]} 1... Nf6 {[%clk 0:02:57.8]} 2. c4 {[%clk 0:02:57.5]}
2... e6 {[%clk 0:02:56.9]} 3. Nc3 {[%clk 0:02:55.7]} 3... Bb4 {[%clk 0:02:56.3]}
4. e3 {[%clk 0:02:55.6]} 4... O-O {[%clk 0:02:53.9]} 5. Ne2 {[%clk 0:02:55.5]}
5... Re8 {[%clk 0:02:52.7]} 6. a3 {[%clk 0:02:55.6]} 6... Bf8 {[%clk 0:02:52.9]}
7. Ng3 {[%clk 0:02:51.3]} 7... d5 {[%clk 0:02:52.6]} 8. Be2 {[%clk 0:02:43.5]}
8... dxc4 {[%clk 0:02:44.7]} 9. Bxc4 {[%clk 0:02:40.4]} 9... a6 {[%clk
0:02:44.7]} 10. O-O {[%clk 0:02:39.6]} 10... b5 {[%clk 0:02:44.4]} 11. Be2
{[%clk 0:02:35.8]} 11... Bb7 {[%clk 0:02:40.6]} 12. Bf3 {[%clk 0:02:29.3]} 12...
Qc8 {[%clk 0:02:40.7]} 13. Nge4 {[%clk 0:02:05.6]} 13... Nbd7 {[%clk 0:02:37.7]}
14. b3 {[%clk 0:01:58.4]} 14... Nxe4 {[%clk 0:02:31.9]} 15. Nxe4 {[%clk
0:01:56.8]} 15... c5 {[%clk 0:02:23.3]} 16. Bb2 {[%clk 0:01:45.3]} 16... Ra7
{[%clk 0:01:28.9]} 17. Rc1 {[%clk 0:01:42.9]} 17... c4 {[%clk 0:01:22.1]} 18.
Qe2 {[%clk 0:01:26.7]} 18... Bd5 {[%clk 0:01:18.9]} 19. Ng5 {[%clk 0:01:16.7]}
19... h6 {[%clk 0:01:12.6]} 20. e4 {[%clk 0:00:57.5]} 20... Ba8 {[%clk
0:01:07.4]} 21. Nxf7 {[%clk 0:00:43]} 21... Kxf7 {[%clk 0:01:04]} 22. Bh5+
{[%clk 0:00:43.6]} 22... g6 {[%clk 0:01:01.3]} 23. Qf3+ {[%clk 0:00:44.1]} 23...
Nf6 {[%clk 0:01:00.8]} 24. d5 {[%clk 0:00:35.7]} 24... e5 {[%clk 0:01:00.7]} 25.
bxc4 {[%clk 0:00:24.6]} 25... gxh5 {[%clk 0:00:48.3]} 26. c5 {[%clk 0:00:19.8]}
26... Bxc5 {[%clk 0:00:41.6]} 27. Rc2 {[%clk 0:00:09.8]} 27... Qg4 {[%clk
0:00:30.5]} 28. Rxc5 {[%clk 0:00:07.6]} 28... Qxf3 {[%clk 0:00:29.3]} 29. gxf3
{[%clk 0:00:08.5]} 29... Nd7 {[%clk 0:00:25.1]} 30. Rc2 {[%clk 0:00:06.5]} 30...
a5 {[%clk 0:00:23.8]} 31. Rfc1 {[%clk 0:00:05.6]} 31... Ke7 {[%clk 0:00:23]} 32.
Rc7 {[%clk 0:00:04.9]} 32... Rxc7 {[%clk 0:00:23]} 33. Rxc7 {[%clk 0:00:05.8]}
33... Kd6 {[%clk 0:00:23.6]} 34. Ra7 {[%clk 0:00:06.3]} 34... Rc8 {[%clk
0:00:23.2]} 35. Rxa5 {[%clk 0:00:05.1]} 35... Bb7 {[%clk 0:00:18.3]} 36. Ra7
{[%clk 0:00:04.5]} 36... Rc7 {[%clk 0:00:17.7]} 37. a4 {[%clk 0:00:04]} 37... b4
{[%clk 0:00:17.4]} 38. a5 {[%clk 0:00:04.2]} 38... Nc5 {[%clk 0:00:17.5]} 39.
Bc1 {[%clk 0:00:02.6]} 39... Nd3 {[%clk 0:00:13]} 40. Be3 {[%clk 0:00:02.2]}
40... b3 {[%clk 0:00:11.6]} 41. a6 {[%clk 0:00:02.6]} 41... Bc8 {[%clk 0:00:10]}
42. Rxc7 {[%clk 0:00:01.9]} 42... Kxc7 {[%clk 0:00:09.9]} 43. a7 {[%clk
0:00:02.8]} 43... Bb7 {[%clk 0:00:09.7]} 44. f4 {[%clk 0:00:02.7]} 44... b2
{[%clk 0:00:08.8]} 45. fxe5 {[%clk 0:00:02.8]} 45... b1=Q+ {[%clk 0:00:09.1]}
46. Kg2 {[%clk 0:00:03.5]} 46... Nxe5 {[%clk 0:00:09.5]} 47. f3 {[%clk
0:00:02.5]} 47... Qc2+ {[%clk 0:00:09.3]} 48. Bf2 {[%clk 0:00:02.8]} 48... Qe2
{[%clk 0:00:09.3]} 49. a8=Q {[%clk 0:00:02.9]} 49... Qxf3+ {[%clk 0:00:09.6]}
0-1

[Event "Early-Titled-Tuesday-Blitz-December-26-2023"]
[Site "Chess.com"]
[Date "2023.12.26"]
[Round "1"]
[White "arturdailima"]
[Black "YouJustFoundYourGodfather"]
[Result "1-0"]
[WhiteElo "2328"]
[BlackElo "2614"]
[TimeControl "180+1"]
[EndTime "8:08:10 PST"]
[Termination "arturdailima won by resignation"]

1. e4 {[%clk 0:02:53.2]} 1... g6 {[%clk 0:02:50.4]} 2. d4 {[%clk 0:02:50.8]}
2... Bg7 {[%clk 0:02:50.9]} 3. Nc3 {[%clk 0:02:49.8]} 3... d6 {[%clk 0:02:51.4]}
4. Nf3 {[%clk 0:02:47.5]} 4... a6 {[%clk 0:02:51.9]} 5. Be2 {[%clk 0:02:25.4]}
5... b5 {[%clk 0:02:48.9]} 6. O-O {[%clk 0:02:20.3]} 6... Bb7 {[%clk 0:02:47.5]}
7. Bg5 {[%clk 0:02:14.5]} 7... h6 {[%clk 0:02:44.8]} 8. Bh4 {[%clk 0:02:13.3]}
8... Nd7 {[%clk 0:02:44.9]} 9. Re1 {[%clk 0:02:12.1]} 9... g5 {[%clk 0:02:37.4]}
10. Bg3 {[%clk 0:02:11.9]} 10... Ngf6 {[%clk 0:02:38]} 11. e5 {[%clk 0:02:08.2]}
11... Nh5 {[%clk 0:02:37.8]} 12. exd6 {[%clk 0:01:59]} 12... Nxg3 {[%clk
0:02:34.7]} 13. hxg3 {[%clk 0:01:58.4]} 13... cxd6 {[%clk 0:02:34.4]} 14. Bf1
{[%clk 0:01:51]} 14... O-O {[%clk 0:02:27.1]} 15. Qd2 {[%clk 0:01:42]} 15... Nf6
{[%clk 0:02:21.6]} 16. Bd3 {[%clk 0:01:40.2]} 16... Rc8 {[%clk 0:02:13.8]} 17.
Ne4 {[%clk 0:01:37.2]} 17... Qd7 {[%clk 0:01:59.5]} 18. Nxf6+ {[%clk 0:01:33]}
18... Bxf6 {[%clk 0:02:00.4]} 19. c3 {[%clk 0:01:31.9]} 19... e6 {[%clk
0:01:50.9]} 20. Bc2 {[%clk 0:01:29.1]} 20... Kg7 {[%clk 0:01:42]} 21. Qd3 {[%clk
0:01:27.5]} 21... Rh8 {[%clk 0:01:42.7]} 22. Bb3 {[%clk 0:01:26.2]} 22... h5
{[%clk 0:01:26]} 23. Qe3 {[%clk 0:01:21.8]} 23... Qd8 {[%clk 0:01:21.4]} 24. d5
{[%clk 0:01:17.2]} 24... e5 {[%clk 0:01:19.4]} 25. Qe4 {[%clk 0:01:12.2]} 25...
Qd7 {[%clk 0:01:15.1]} 26. Qe3 {[%clk 0:01:10.4]} 26... Qd8 {[%clk 0:01:04.6]}
27. Qe4 {[%clk 0:01:09.8]} 27... Rc5 {[%clk 0:01:03.5]} 28. Rad1 {[%clk
0:01:03.9]} 28... a5 {[%clk 0:01:00]} 29. a3 {[%clk 0:01:00.2]} 29... Rh6 {[%clk
0:00:55.1]} 30. Nh2 {[%clk 0:00:59.7]} 30... Bc8 {[%clk 0:00:50.8]} 31. Nf1
{[%clk 0:00:56.1]} 31... Bd7 {[%clk 0:00:45.8]} 32. Ne3 {[%clk 0:00:55.8]} 32...
Qc8 {[%clk 0:00:46.3]} 33. Bc2 {[%clk 0:00:53]} 33... h4 {[%clk 0:00:40.5]} 34.
g4 {[%clk 0:00:51.2]} 34... Kf8 {[%clk 0:00:28.8]} 35. Qf3 {[%clk 0:00:49]}
35... b4 {[%clk 0:00:25.9]} 36. axb4 {[%clk 0:00:48.9]} 36... axb4 {[%clk
0:00:26.1]} 37. c4 {[%clk 0:00:48.4]} 37... Bd8 {[%clk 0:00:17.3]} 38. b3 {[%clk
0:00:46.1]} 38... Ra5 {[%clk 0:00:17]} 39. Ra1 {[%clk 0:00:45.8]} 39... Rxa1
{[%clk 0:00:11.6]} 40. Rxa1 {[%clk 0:00:44.4]} 40... Bb6 {[%clk 0:00:12.5]} 41.
Nf5 {[%clk 0:00:43.3]} 41... Rf6 {[%clk 0:00:11.4]} 42. Kh2 {[%clk 0:00:35.3]}
42... Bd4 {[%clk 0:00:08.6]} 43. Ra2 {[%clk 0:00:33.7]} 43... Qb8 {[%clk
0:00:05.3]} 44. Qe2 {[%clk 0:00:32.3]} 44... Qb7 {[%clk 0:00:03.9]} 45. Qd2
{[%clk 0:00:25]} 45... Rg6 {[%clk 0:00:01.1]} 46. Nxd4 {[%clk 0:00:23.8]} 46...
exd4 {[%clk 0:00:01.5]} 47. Bxg6 {[%clk 0:00:24.2]} 47... fxg6 {[%clk
0:00:01.9]} 48. Qxd4 {[%clk 0:00:23.6]} 48... Kf7 {[%clk 0:00:02.3]} 49. Ra7
{[%clk 0:00:21.3]} 49... Qc8 {[%clk 0:00:02.9]} 50. Qe3 {[%clk 0:00:17.6]} 50...
Qd8 {[%clk 0:00:03.6]} 51. Qf3+ {[%clk 0:00:16]} 51... Kg7 {[%clk 0:00:04]} 52.
Qe4 {[%clk 0:00:11.7]} 52... Kh6 {[%clk 0:00:04.9]} 53. Qd4 {[%clk 0:00:09.2]}
53... Qe7 {[%clk 0:00:04.9]} 54. Qh8+ {[%clk 0:00:07.4]} 1-0

[Event "Early-Titled-Tuesday-Blitz-December-26-2023"]
[Site "Chess.com"]
[Date "2023.12.26"]
[Round "1"]
[White "CarlosjPineror"]
[Black "bascheyaro"]
[Result "0-1"]
[WhiteElo "2481"]
[BlackElo "2821"]
[TimeControl "180+1"]
[EndTime "8:08:15 PST"]
[Termination "bascheyaro won by resignation"]

1. e4 {[%clk 0:02:54]} 1... e6 {[%clk 0:02:59.9]} 2. d4 {[%clk 0:02:52.9]} 2...
d5 {[%clk 0:02:59.6]} 3. e5 {[%clk 0:02:53.3]} 3... c5 {[%clk 0:02:59.7]} 4. c3
{[%clk 0:02:53.7]} 4... Qb6 {[%clk 0:02:59.9]} 5. Nf3 {[%clk 0:02:51.9]} 5...
Bd7 {[%clk 0:03:00.3]} 6. a3 {[%clk 0:02:39.6]} 6... a6 {[%clk 0:02:59.7]} 7.
Be2 {[%clk 0:02:36]} 7... Bb5 {[%clk 0:02:59.6]} 8. c4 {[%clk 0:02:25.9]} 8...
Bxc4 {[%clk 0:02:59.7]} 9. Bxc4 {[%clk 0:02:25.7]} 9... dxc4 {[%clk 0:03:00.6]}
10. d5 {[%clk 0:02:24.8]} 10... Ne7 {[%clk 0:03:00.6]} 11. dxe6 {[%clk 0:02:15]}
11... Qxe6 {[%clk 0:03:01.5]} 12. O-O {[%clk 0:02:14.5]} 12... h6 {[%clk
0:03:00.9]} 13. Nc3 {[%clk 0:02:05.1]} 13... Nbc6 {[%clk 0:03:00.8]} 14. Ne4
{[%clk 0:02:04]} 14... Nd5 {[%clk 0:02:42.1]} 15. Qe2 {[%clk 0:02:01.5]} 15...
b5 {[%clk 0:02:39.7]} 16. Be3 {[%clk 0:01:53.6]} 16... Nxe3 {[%clk 0:02:36.9]}
17. Qxe3 {[%clk 0:01:53.3]} 17... Be7 {[%clk 0:02:03]} 18. Nxc5 {[%clk
0:01:33.8]} 18... Qd5 {[%clk 0:02:02.8]} 19. Nb7 {[%clk 0:01:21.3]} 19... O-O
{[%clk 0:01:30.5]} 20. Rad1 {[%clk 0:01:20.7]} 20... Nd4 {[%clk 0:01:28.7]} 21.
Nxd4 {[%clk 0:01:10]} 21... Qxb7 {[%clk 0:01:28.3]} 22. Nf5 {[%clk 0:01:10.9]}
22... Kh7 {[%clk 0:00:56.7]} 23. h4 {[%clk 0:00:22.6]} 23... Rad8 {[%clk
0:00:54.7]} 24. Qg3 {[%clk 0:00:17.9]} 24... g6 {[%clk 0:00:53.9]} 25. Nxe7
{[%clk 0:00:11.2]} 25... Qxe7 {[%clk 0:00:53.5]} 26. Rd6 {[%clk 0:00:12.1]}
26... Rfe8 {[%clk 0:00:26.1]} 27. Rfd1 {[%clk 0:00:11.8]} 27... Rxd6 {[%clk
0:00:26.1]} 28. exd6 {[%clk 0:00:11.7]} 28... Qe2 {[%clk 0:00:26.5]} 29. Qf3
{[%clk 0:00:05.4]} 29... Qxf3 {[%clk 0:00:26.6]} 30. gxf3 {[%clk 0:00:06.3]}
30... Kg7 {[%clk 0:00:26.8]} 31. d7 {[%clk 0:00:05.9]} 31... Rd8 {[%clk
0:00:27.3]} 32. Rd6 {[%clk 0:00:06.8]} 32... Kf8 {[%clk 0:00:26.9]} 33. h5
{[%clk 0:00:06.4]} 33... gxh5 {[%clk 0:00:11.2]} 34. Rxa6 {[%clk 0:00:06.5]}
34... Rxd7 {[%clk 0:00:11.7]} 35. Rb6 {[%clk 0:00:06.1]} 35... Rd5 {[%clk
0:00:11.7]} 36. Rxh6 {[%clk 0:00:06]} 36... Rd2 {[%clk 0:00:11.2]} 37. Rxh5
{[%clk 0:00:04.1]} 37... Rxb2 {[%clk 0:00:11.8]} 38. Rc5 {[%clk 0:00:04.8]}
38... Rb3 {[%clk 0:00:11.9]} 39. a4 {[%clk 0:00:04.8]} 39... bxa4 {[%clk
0:00:12.3]} 40. Rxc4 {[%clk 0:00:05.4]} 40... a3 {[%clk 0:00:13]} 41. Ra4 {[%clk
0:00:05.8]} 41... Rxf3 {[%clk 0:00:13.1]} 42. Kg2 {[%clk 0:00:06.4]} 42... Rb3
{[%clk 0:00:13.8]} 43. Ra7 {[%clk 0:00:07]} 43... Ke8 {[%clk 0:00:14.1]} 44. Kh2
{[%clk 0:00:07.6]} 44... f5 {[%clk 0:00:14.3]} 45. Kg2 {[%clk 0:00:08.5]} 45...
Kd8 {[%clk 0:00:14.3]} 46. Ra5 {[%clk 0:00:08.5]} 46... f4 {[%clk 0:00:14.3]}
47. Ra4 {[%clk 0:00:08.9]} 47... f3+ {[%clk 0:00:11.1]} 48. Kg3 {[%clk
0:00:09.3]} 48... Kc7 {[%clk 0:00:11.8]} 49. Ra7+ {[%clk 0:00:09.3]} 49... Kc6
{[%clk 0:00:12.1]} 50. Ra4 {[%clk 0:00:09.4]} 50... Kb5 {[%clk 0:00:12.2]} 51.
Ra8 {[%clk 0:00:09.7]} 51... Kb4 {[%clk 0:00:12.6]} 52. Ra7 {[%clk 0:00:07.4]}
52... Rc3 {[%clk 0:00:12.6]} 53. Rb7+ {[%clk 0:00:06.6]} 53... Ka4 {[%clk
0:00:13.1]} 54. Ra7+ {[%clk 0:00:05.4]} 54... Kb3 {[%clk 0:00:13.6]} 55. Rb7+
{[%clk 0:00:05]} 55... Kc2 {[%clk 0:00:14.2]} 56. Ra7 {[%clk 0:00:04.9]} 56...
Kb2 {[%clk 0:00:14.8]} 57. Rb7+ {[%clk 0:00:05.2]} 57... Rb3 {[%clk 0:00:15]}
0-1

[Event "Early-Titled-Tuesday-Blitz-December-26-2023"]
[Site "Chess.com"]
[Date "2023.12.26"]
[Round "1"]
[White "igorkovalenko"]
[Black "DrCeltic"]
[Result "1-0"]
[WhiteElo "2902"]
[BlackElo "2515"]
[TimeControl "180+1"]
[EndTime "8:08:17 PST"]
[Termination "igorkovalenko won by resignation"]

1. d4 {[%clk 0:03:00.9]} 1... d5 {[%clk 0:02:59]} 2. c4 {[%clk 0:03:00.8]} 2...
c6 {[%clk 0:02:59.6]} 3. Nc3 {[%clk 0:03:00.8]} 3... Nf6 {[%clk 0:03:00.2]} 4.
Nf3 {[%clk 0:03:01.1]} 4... dxc4 {[%clk 0:03:00.2]} 5. e3 {[%clk 0:02:59.1]}
5... b5 {[%clk 0:03:00.1]} 6. a4 {[%clk 0:02:59.4]} 6... b4 {[%clk 0:02:57.7]}
7. Nb1 {[%clk 0:02:59.3]} 7... a5 {[%clk 0:02:58.2]} 8. Bxc4 {[%clk 0:02:59]}
8... Ba6 {[%clk 0:02:58.9]} 9. Nbd2 {[%clk 0:02:58.8]} 9... e6 {[%clk 0:02:57]}
10. b3 {[%clk 0:02:58.2]} 10... Be7 {[%clk 0:02:53.7]} 11. Bb2 {[%clk
0:02:58.4]} 11... O-O {[%clk 0:02:53.4]} 12. Qe2 {[%clk 0:02:55.5]} 12... Bxc4
{[%clk 0:02:53.4]} 13. Nxc4 {[%clk 0:02:56.4]} 13... Nbd7 {[%clk 0:02:53.5]} 14.
Rd1 {[%clk 0:02:56.1]} 14... Qc7 {[%clk 0:02:47.2]} 15. e4 {[%clk 0:02:51.9]}
15... Rfe8 {[%clk 0:02:42.8]} 16. O-O {[%clk 0:02:49.8]} 16... c5 {[%clk
0:02:35.3]} 17. d5 {[%clk 0:02:49.5]} 17... exd5 {[%clk 0:02:35.2]} 18. exd5
{[%clk 0:02:50.4]} 18... Nb6 {[%clk 0:02:19.6]} 19. Nxb6 {[%clk 0:02:49]} 19...
Qxb6 {[%clk 0:02:19.9]} 20. Qc4 {[%clk 0:02:38.3]} 20... Nd7 {[%clk 0:02:00.5]}
21. d6 {[%clk 0:02:28.1]} 21... Bf6 {[%clk 0:01:55.5]} 22. Bxf6 {[%clk
0:02:24.5]} 22... Nxf6 {[%clk 0:01:56.4]} 23. Ng5 {[%clk 0:02:17.7]} 23... Rf8
{[%clk 0:01:49.3]} 24. Rfe1 {[%clk 0:02:12]} 24... Rad8 {[%clk 0:01:45.4]} 25.
d7 {[%clk 0:01:16.8]} 25... Rxd7 {[%clk 0:01:28.7]} 26. Rxd7 {[%clk 0:01:12.1]}
26... Nxd7 {[%clk 0:01:28.8]} 27. h4 {[%clk 0:01:09.6]} 27... h6 {[%clk
0:01:21.5]} 28. Ne4 {[%clk 0:00:58.7]} 28... Qe6 {[%clk 0:01:16.4]} 29. Qxe6
{[%clk 0:00:55.7]} 29... fxe6 {[%clk 0:01:17.3]} 30. Rd1 {[%clk 0:00:56.1]}
30... Rf7 {[%clk 0:01:11.2]} 31. Nd6 {[%clk 0:00:56.2]} 31... Re7 {[%clk
0:01:09.6]} 32. Nc4 {[%clk 0:00:55.3]} 32... Kf7 {[%clk 0:01:06.6]} 33. Kf1
{[%clk 0:00:52.3]} 33... Kf6 {[%clk 0:01:06.8]} 34. Nxa5 {[%clk 0:00:49.4]}
34... Ne5 {[%clk 0:01:05.4]} 35. f4 {[%clk 0:00:43]} 35... Ng4 {[%clk
0:01:05.6]} 36. Nc4 {[%clk 0:00:43.1]} 36... Kf5 {[%clk 0:01:03.1]} 37. g3
{[%clk 0:00:43.1]} 37... g5 {[%clk 0:00:58.1]} 38. hxg5 {[%clk 0:00:41]} 38...
hxg5 {[%clk 0:00:58.4]} 39. fxg5 {[%clk 0:00:41.4]} 39... Kxg5 {[%clk
0:00:56.8]} 40. Ke2 {[%clk 0:00:40.6]} 40... Rh7 {[%clk 0:00:56.4]} 41. Rd2
{[%clk 0:00:35.8]} 41... Rh2+ {[%clk 0:00:56.1]} 42. Kd3 {[%clk 0:00:34.3]}
42... Rh3 {[%clk 0:00:56.4]} 43. Rg2 {[%clk 0:00:32.5]} 43... Nf6 {[%clk
0:00:54.2]} 44. a5 {[%clk 0:00:32.3]} 44... Nd5 {[%clk 0:00:49.9]} 45. Ke4
{[%clk 0:00:27.7]} 45... Rh7 {[%clk 0:00:48.7]} 46. Ke5 {[%clk 0:00:26.5]} 46...
Kg4 {[%clk 0:00:43.7]} 47. Kxe6 {[%clk 0:00:25.8]} 47... Nc7+ {[%clk 0:00:44]}
48. Kd6 {[%clk 0:00:25.8]} 48... Kf3 {[%clk 0:00:44.6]} 49. Rg1 {[%clk
0:00:25.2]} 49... Nb5+ {[%clk 0:00:43.2]} 50. Kxc5 {[%clk 0:00:25.1]} 50... Nc3
{[%clk 0:00:43.4]} 51. Kxb4 {[%clk 0:00:24.7]} 51... Ne2 {[%clk 0:00:44]} 52.
Ra1 {[%clk 0:00:24.2]} 52... Rb7+ {[%clk 0:00:44.3]} 53. Kc5 {[%clk 0:00:23.1]}
53... Rxb3 {[%clk 0:00:43.4]} 54. a6 {[%clk 0:00:23.6]} 54... Rb8 {[%clk
0:00:43.8]} 55. a7 {[%clk 0:00:23.8]} 55... Ra8 {[%clk 0:00:43.9]} 56. Nb6
{[%clk 0:00:24.3]} 56... Rg8 {[%clk 0:00:43.2]} 57. a8=Q+ {[%clk 0:00:24.1]}
57... Rxa8 {[%clk 0:00:43.3]} 58. Rxa8 {[%clk 0:00:24.9]} 58... Nxg3 {[%clk
0:00:44.2]} 59. Ra3+ {[%clk 0:00:24.1]} 59... Kf2 {[%clk 0:00:44.3]} 60. Nd7
{[%clk 0:00:24.1]} 60... Nf5 {[%clk 0:00:43.5]} 61. Ne5 {[%clk 0:00:23.9]} 61...
Ne3 {[%clk 0:00:42.7]} 62. Rb3 {[%clk 0:00:19.8]} 62... Ke2 {[%clk 0:00:42.2]}
63. Rb2+ {[%clk 0:00:19.7]} 63... Kd1 {[%clk 0:00:41.3]} 64. Nc4 {[%clk
0:00:19.8]} 64... Nf5 {[%clk 0:00:39.1]} 65. Kb4 {[%clk 0:00:18.7]} 65... Kc1
{[%clk 0:00:39.1]} 66. Kc3 {[%clk 0:00:18.7]} 66... Ne3 {[%clk 0:00:35.2]} 67.
Rh2 {[%clk 0:00:18.6]} 67... Nd1+ {[%clk 0:00:34.3]} 68. Kb3 {[%clk 0:00:18.9]}
68... Kb1 {[%clk 0:00:32.3]} 69. Rh1 {[%clk 0:00:19.1]} 69... Kc1 {[%clk
0:00:32.6]} 70. Rg1 {[%clk 0:00:19.7]} 1-0

[Event "Early-Titled-Tuesday-Blitz-December-26-2023"]
[Site "Chess.com"]
[Date "2023.12.26"]
[Round "1"]
[White "Philosopherrr"]
[Black "GoltsevDmitry2000"]
[Result "0-1"]
[WhiteElo "2395"]
[BlackElo "2700"]
[TimeControl "180+1"]
[EndTime "8:08:18 PST"]
[Termination "GoltsevDmitry2000 won by resignation"]

1. e4 {[%clk 0:02:59.7]} 1... e6 {[%clk 0:03:00.1]} 2. Nf3 {[%clk 0:02:57.9]}
2... d5 {[%clk 0:02:59.9]} 3. Nc3 {[%clk 0:02:58.6]} 3... Nf6 {[%clk 0:02:58.6]}
4. e5 {[%clk 0:02:57.2]} 4... Ne4 {[%clk 0:02:58.8]} 5. Ne2 {[%clk 0:02:53.2]}
5... Bc5 {[%clk 0:02:53.8]} 6. d4 {[%clk 0:02:51]} 6... Bb6 {[%clk 0:02:52.4]}
7. c3 {[%clk 0:02:48.1]} 7... c5 {[%clk 0:02:50]} 8. Be3 {[%clk 0:02:46.8]} 8...
cxd4 {[%clk 0:02:39.6]} 9. Nexd4 {[%clk 0:02:24.6]} 9... Bd7 {[%clk 0:02:35.4]}
10. Bd3 {[%clk 0:02:23.7]} 10... Nc6 {[%clk 0:02:32.7]} 11. O-O {[%clk
0:02:13.2]} 11... Bc7 {[%clk 0:02:24.9]} 12. Nxc6 {[%clk 0:01:57.2]} 12... Bxc6
{[%clk 0:02:25.7]} 13. Qc2 {[%clk 0:01:50]} 13... h6 {[%clk 0:02:19.9]} 14. Rad1
{[%clk 0:01:45]} 14... Qe7 {[%clk 0:02:17.4]} 15. Nd4 {[%clk 0:01:41.2]} 15...
Bxe5 {[%clk 0:02:15.1]} 16. Nxc6 {[%clk 0:01:41]} 16... bxc6 {[%clk 0:02:16]}
17. Bxe4 {[%clk 0:01:41.5]} 17... dxe4 {[%clk 0:02:16.1]} 18. Qxe4 {[%clk
0:01:42]} 18... Qc7 {[%clk 0:02:15.4]} 19. Bc5 {[%clk 0:01:38.1]} 19... Bf6
{[%clk 0:02:12.8]} 20. Rd6 {[%clk 0:01:28.8]} 20... Rc8 {[%clk 0:02:04.8]} 21.
Rfd1 {[%clk 0:01:27.1]} 21... O-O {[%clk 0:01:53.3]} 22. g3 {[%clk 0:01:12]}
22... Rfe8 {[%clk 0:01:40.8]} 23. b4 {[%clk 0:01:06]} 23... Bxc3 {[%clk
0:01:33.6]} 24. Rd7 {[%clk 0:01:06]} 24... Qe5 {[%clk 0:01:31.3]} 25. Qf3 {[%clk
0:01:02.1]} 25... Qf6 {[%clk 0:01:02.8]} 26. Qe4 {[%clk 0:00:50.1]} 26... a5
{[%clk 0:00:31.3]} 27. a3 {[%clk 0:00:49.2]} 27... axb4 {[%clk 0:00:29.8]} 28.
axb4 {[%clk 0:00:49.8]} 28... Rb8 {[%clk 0:00:28]} 29. R1d3 {[%clk 0:00:48.7]}
29... Be5 {[%clk 0:00:12.7]} 30. Rf3 {[%clk 0:00:47.7]} 30... Qg5 {[%clk
0:00:11.6]} 31. h4 {[%clk 0:00:44.9]} 31... Qh5 {[%clk 0:00:11.7]} 32. Rfxf7
{[%clk 0:00:43.5]} 32... Bf6 {[%clk 0:00:11.8]} 33. Kg2 {[%clk 0:00:37.5]} 33...
Qxf7 {[%clk 0:00:12]} 34. Rxf7 {[%clk 0:00:37.5]} 34... Kxf7 {[%clk 0:00:12.9]}
35. Qxc6 {[%clk 0:00:38]} 35... Rec8 {[%clk 0:00:13.4]} 36. Qd7+ {[%clk
0:00:38.2]} 36... Kg8 {[%clk 0:00:13.7]} 37. Qxe6+ {[%clk 0:00:38.9]} 37... Kh8
{[%clk 0:00:13.3]} 38. f4 {[%clk 0:00:37.8]} 38... Re8 {[%clk 0:00:13.6]} 39.
Qf5 {[%clk 0:00:37.6]} 39... Rec8 {[%clk 0:00:13.8]} 40. h5 {[%clk 0:00:37.4]}
40... Re8 {[%clk 0:00:14]} 41. g4 {[%clk 0:00:37.9]} 41... Ra8 {[%clk
0:00:11.1]} 42. g5 {[%clk 0:00:36.6]} 42... hxg5 {[%clk 0:00:11.6]} 43. fxg5
{[%clk 0:00:36.5]} 43... Re5 {[%clk 0:00:12]} 44. Qf3 {[%clk 0:00:26.3]} 44...
Rxg5+ {[%clk 0:00:12.3]} 45. Kh3 {[%clk 0:00:25.4]} 45... Rd8 {[%clk 0:00:11]}
46. Bf2 {[%clk 0:00:20.5]} 46... Rdd5 {[%clk 0:00:10.3]} 47. Bg3 {[%clk
0:00:16.8]} 47... Rdf5 {[%clk 0:00:09.4]} 48. Qa8+ {[%clk 0:00:16.5]} 48... Kh7
{[%clk 0:00:09.1]} 49. Qe4 {[%clk 0:00:17.2]} 49... Rxh5+ {[%clk 0:00:09.4]} 50.
Kg2 {[%clk 0:00:17.4]} 50... Rg5 {[%clk 0:00:09.8]} 51. b5 {[%clk 0:00:17.6]}
51... g6 {[%clk 0:00:09.2]} 52. Qb7+ {[%clk 0:00:16.9]} 52... Kh6 {[%clk
0:00:07.6]} 53. Kh3 {[%clk 0:00:16.7]} 53... Rh5+ {[%clk 0:00:06.8]} 54. Kg2
{[%clk 0:00:16.4]} 54... Rxb5 {[%clk 0:00:07.1]} 55. Qf7 {[%clk 0:00:15.8]}
55... Rbf5 {[%clk 0:00:06.9]} 56. Qf8+ {[%clk 0:00:15.6]} 56... Bg7 {[%clk
0:00:07.1]} 57. Qe8 {[%clk 0:00:15.7]} 57... Rhg5 {[%clk 0:00:07.3]} 58. Kh3
{[%clk 0:00:15.4]} 58... Rf3 {[%clk 0:00:07]} 59. Qe1 {[%clk 0:00:12.1]} 59...
Rgxg3+ {[%clk 0:00:06.6]} 60. Qxg3 {[%clk 0:00:12.6]} 60... Rxg3+ {[%clk
0:00:07.5]} 61. Kxg3 {[%clk 0:00:13.5]} 61... Kg5 {[%clk 0:00:07.7]} 62. Kg2
{[%clk 0:00:13.1]} 62... Kf5 {[%clk 0:00:08.6]} 0-1